Cogmind - Beta 14 @@@ ROGUE MODE // 2024.11.29 @ 21:47:14 Player: Shimmyarah Result: Destroyed by VF-KVR(R) with Subdweller Beam Cannon Performance ------------- Evolutions (0) 0 Regions Visited (2) 400 Robots Destroyed (16) 80 Value Destroyed (366) 366 Prototype IDs (0) 0 Alien Tech Used (0) 0 Bonus (0) 0 TOTAL SCORE: 846 Bonus ------- None Cogmind --------- Core Integrity 0/250 Matter 238/300 Energy 246/250 System Corruption 0% Temperature Cool (9) Movement Rolling (155) Ox5 Location -10/Subcaves Parts ------- > --- POWER (1) -------- Ion Engine > --- PROPULSION (2) --- Spiked Treads Wheel > --- UTILITY (2) ------ High-capacity Storage Unit Makeshift Light Armor Plating > --- WEAPON (2) ------- Subdweller Machine Gun Battle Cannon > --- INVENTORY (20) --- Light Ion Engine Subdweller Power Source Light Treads Light Treads Aluminum Leg Wheel Wheel Subdweller Monowheel Subdweller Monowheel Improved Terrain Scanner Seismic Detector Makeshift System Restoration Module Subdweller Laser Beam Cannon Barrage Gun Flamer Flamer Makeshift Hammer Scrap Shield Fragment (47) Peak State ------------ > --- POWER ------------ Ion Engine > --- PROPULSION ------- Spiked Treads Wheel > --- UTILITY ---------- High-capacity Storage Unit Makeshift Light Armor Plating > --- WEAPON ----------- Subdweller Machine Gun Makeshift Hammer > --- INVENTORY -------- Light Ion Engine Subdweller Power Source Light Treads Light Treads Aluminum Leg Wheel Wheel Subdweller Monowheel Heat Sink Improved Terrain Scanner Seismic Detector Makeshift System Restoration Module Beam Cannon Subdweller Machine Gun Barrage Gun Barrage Gun Battle Cannon Flamer Flamer Scrap Shield Fragment [Rating: 18] Favorites ----------- Power Ion Engine Engine Ion Engine Propulsion Light Treads Treads Light Treads Leg Aluminum Leg Wheel Wheel Utility High-capacity Storage Unit Device Heat Sink Storage High-capacity Storage Unit Protection Propulsion Shielding Weapon Light Assault Rifle Ballistic Gun Light Assault Rifle Ballistic Cannon Battle Cannon Special Weapon Mining Laser Impact Weapon Makeshift Hammer Build | -11 -10 -10 ------- Run | Yrd Mat Sub Slots Evolved . | . . . Power . | . . . Propulsion . | . . . Utility . | . . . Weapon . | . . . Parts Attached 34 | 2 10 22 Power 1 | . 1 . Engine 1 | . 1 . Core . | . . . Reactor . | . . . Propulsion 13 | . 6 7 Treads 7 | . 4 3 Leg . | . . . Wheel 6 | . 2 4 Hover . | . . . Flight . | . . . Utility 7 | 1 3 3 Device 4 | 1 1 2 Storage 1 | . 1 . Processor . | . . . Hackware . | . . . Protection 2 | . 1 1 Artifact . | . . . Weapon 13 | 1 . 12 Energy Gun . | . . . Energy Cannon . | . . . Ballistic Gun 7 | 1 . 6 Ballistic Cannon 1 | . . 1 Launcher . | . . . Special Weapon 3 | . . 3 Impact Weapon 2 | . . 2 Slashing Weapon . | . . . Piercing Weapon . | . . . Special Melee Weapon . | . . . Unidentified Prototypes . | . . . Parts Lost 4 | . 2 2 Power 1 | . 1 . Propulsion . | . . . Utility 1 | . 1 . Weapon 2 | . . 2 Highest Loss Streak 1 | . 1 1 To Critical Strikes . | . . . Average Slot Usage (%) 98 | . 96 99 Engine 12 | . 11 14 Treads 14 | . 14 14 Wheel 13 | . 13 14 Device 11 | . 9 12 Storage 14 | . 14 14 Protection 2 | . 4 1 Ballistic Gun 25 | . 28 23 Impact Weapon 1 | . . 1 Peak Build Rating 18 | 9 10 18 Average Rating 9 | 8 8 10 On Entrance 7 | 6 9 8 Naked Turns . | . . . Heaviest Build 57 | 11 48 57 Greatest Support 40 | 20 40 40 Greatest Overweight (x) 5 | . 2 5 Average Overweight (x) 1 | . 1 1 Largest Inventory Capacity 20 | 8 20 20 Average Capacity 18 | 8 19 20 Most Carried 20 | 8 13 20 Average Carried 13 | 6 10 16 Final Capacity 20 | 8 20 20 Final Carried 19 | 8 9 19 Class Distribution -------------------- 100% | Mutant Dominant Class ---------------- Mutant | -10/Materials Mutant | -10/Subcaves Resources | -11 -10 -10 ----------- Run | Yrd Mat Sub Matter Collected 633 | 224 197 212 Remotely . | . . . Salvage Created 571 | 179 284 108 Parts 36 | 16 10 10 Haulers Intercepted . | . . . Recyclers Shooed 1 | . 1 . Parts Field Recycled . | . . . Retrieved Matter . | . . . Parts Self-Destructed 3 | . . 3 Prevented . | . . . Kills | -11 -10 -10 ------- Run | Yrd Mat Sub Combat Hostiles Destroyed 9 | . 5 4 Guns 9 | . 5 4 Classes Destroyed 6 | 2 2 2 Tunneler 5 | 5 . . Recycler 2 | 1 1 . Swarmer 1 | . 1 . Grunt 4 | . 4 . Artisan 1 | . . 1 Subdweller 4 | . . 4 Best Kill Streak 4 | 4 2 2 Combat Bots Only 2 | . 2 2 Max Kills in Single Turn 1 | 1 1 1 Gunslinging . | . . . Exploded . | . . . Melee . | . . . Uniques/NPCs Destroyed . | . . . Combat | -11 -10 -10 -------- Run | Yrd Mat Sub Hostile Shots Fired 91 | . 54 37 Missed 27 | . 20 7 Damage Taken 1145 | . 521 624 Core 268 | . 104 164 Absorbed by Shields . | . . . Redirected to Shielding 57 | . 57 . Core Remaining (%) 100 | 100 . . Volleys Fired 89 | 19 34 36 Largest 2 | 2 2 2 Hottest 100 | 40 40 100 Shots Fired 147 | 38 68 41 Gun 137 | 38 68 31 Cannon 1 | . . 1 Launcher . | . . . Special 9 | . . 9 Kinetic 138 | 38 68 32 Thermal 9 | . . 9 Explosive . | . . . Electromagnetic . | . . . Robot Hit Streak 20 | 6 14 20 Robot Miss Streak 5 | 1 5 2 Penetration Max . | . . . Secondary Targets . | . . . Shots Hit Robots 95 | 27 42 26 Core Hits 34 | 12 15 7 Critical Kills . | . . . Critical Parts Destroyed . | . . . Critical Strikes . | . . . Melee Attacks 1 | . . 1 Impact 1 | . . 1 Slashing . | . . . Piercing . | . . . Sneak Attacks . | . . . Combat Hostiles . | . . . Follow-up Attacks . | . . . Damage Inflicted 1097 | 212 370 515 Guns 1036 | 212 353 471 Cannons 20 | . . 20 Explosions . | . . . Melee . | . . . Ramming 17 | . 17 . Kinetic 1056 | 212 353 491 Thermal 24 | . . 24 Explosive . | . . . Electromagnetic . | . . . Impact . | . . . Slashing . | . . . Piercing . | . . . Highest Corruption . | . . . Average Corruption . | . . . Corruption Purged . | . . . Corruption Blocked . | . . . Overload Shots . | . . . Overflow Damage . | . . . Projectiles . | . . . Explosions . | . . . Melee . | . . . Knockbacks 1 | . . 1 Impact . | . . . Kinetic 1 | . . 1 Secondary . | . . . Self-Inflicted Damage 8 | . 8 . Shots . | . . . Rammed 1 | . 1 . Targets Rammed 1 | . 1 . Kicked . | . . . Crushed . | . . . Highest Temperature 12 | . 12 . Average Temperature 6 | . 6 . Received Heat Transfer 318 | . 195 123 Siege Activations . | . . . Robots Corrupted . | . . . Combat Hostiles . | . . . Parts Fried . | . . . Impact Corruptions . | . . . Robots Melted . | . . . Combat Hostiles . | . . . Parts Melted 1 | . . 1 Heat Transferred 50 | . . 50 Parts Sabotaged . | . . . Parts Stolen . | . . . Parts Stripped . | . . . Power Chain Reactions . | . . . Alert | -11 -10 -10 ------- Run | Yrd Mat Sub Peak Influence 145 | 30 145 . Initial 19 | . 19 . Average 51 | 16 57 . Maximum Alert Level . | . . . Low Security (%) 100 | 100 100 . Level 1 . | . . . Level 2 . | . . . Level 3 . | . . . Level 4 . | . . . Level 5 . | . . . High Security . | . . . Max Security . | . . . Squads Dispatched 1 | . 1 . Investigation . | . . . Extermination . | . . . Reinforcement 1 | . 1 . Assault . | . . . Garrison . | . . . Intercept . | . . . Searches Triggered . | . . . Construction Impeded . | . . . Haulers Reinforced . | . . . Active Scanning Responses . | . . . Cargo Convoy Interrupts . | . . . Stealth | -11 -10 -10 --------- Run | Yrd Mat Sub Distress Signals 1 | . 1 . Communications Jammed . | . . . Distress Signals . | . . . Times Spotted 21 | . 15 6 Peak Tracking Total 4 | . 4 2 Tactical Retreats 2 | . 2 . Traps | -11 -10 -10 ------- Run | Yrd Mat Sub Traps Triggered 1 | . 1 . Indirectly . | . . . Trap Hack Attempts . | . . . Triggered . | . . . Disarmed . | . . . Reprogrammed . | . . . Reused . | . . . Traps Extracted . | . . . Installed . | . . . Triggered . | . . . Machines | -11 -10 -10 ---------- Run | Yrd Mat Sub Machines Disabled . | . . . Max in Single Turn . | . . . Machines Repaired . | . . . Machines Dismantled . | . . . Machines Sabotaged . | . . . Overloaded Fab Kills . | . . . Hacking | -11 -10 -10 --------- Run | Yrd Mat Sub Machines Accessed 4 | . 4 . Terminals 4 | . 4 . Fabricators . | . . . Repair Stations . | . . . Recycling Units . | . . . Scanalyzers . | . . . Garrison Access . | . . . Total Hacks 12 | . 12 . Successful 2 | . 2 . Failed 10 | . 10 . Catastrophic 4 | . 4 . Database Lockouts . | . . . Manual 3 | . 3 . Terminals 12 | . 12 . Fabricators . | . . . Repair Stations . | . . . Recycling Units . | . . . Scanalyzers . | . . . Garrison Access . | . . . Terminal Hacks 2 | . 2 . Robot Analysis 1 | . 1 . Registered Components 1 | . 1 . Fabricator Hacks . | . . . Repair Station Hacks . | . . . Recycling Unit Hacks . | . . . Scanalyzer . | . . . Garrison Access Hacks . | . . . Unauthorized Hacks . | . . . Terminals . | . . . Fabricators . | . . . Repair Stations . | . . . Recycling Units . | . . . Scanalyzers . | . . . Garrison Access . | . . . Data Cores Recovered . | . . . Used . | . . . Hacking Detections 4 | . 4 . Full Trace Events 2 | . 2 . Feedback Events . | . . . Feedback Blocked . | . . . Robot Schematics Acquired . | . . . Robots Built . | . . . Authchips . | . . . Time . | . . . Total Robot Build Rating . | . . . Part Schematics Acquired . | . . . Parts Built . | . . . Authchips . | . . . Time . | . . . Total Part Build Rating . | . . . Parts Repaired . | . . . Time . | . . . Parts Recycled . | . . . Recycled Matter . | . . . Retrieved Matter . | . . . Retrieved Components . | . . . Parts Scanalyzed . | . . . Part Schematics Acquired . | . . . Parts Damaged . | . . . Bothacking | -11 -10 -10 ------------ Run | Yrd Mat Sub Used RIF Installer . | . . . Robots Hacked . | . . . Non-combat . | . . . Combat . | . . . Robot Hacks Applied . | . . . Relay Couplers Released . | . . . Fabnet Peak Effective % . | . . . Robots Rewired . | . . . Allies Hacked . | . . . Hacks Repelled . | . . . Allies | -11 -10 -10 -------- Run | Yrd Mat Sub Total Allies . | . . . Largest Group . | . . . Highest-Rated Group . | . . . Highest-Rated Ally . | . . . Total Orders . | . . . Ally Attacks . | . . . Total Damage . | . . . Kills . | . . . Allies Corrupted . | . . . Allies Melted . | . . . Intel | -11 -10 -10 ------- Run | Yrd Mat Sub Robot Analysis Total 1 | . 1 . Derelict Logs Recovered 3 | . . 3 Drone Launches . | . . . Drone Recoveries . | . . . Exploration | -11 -10 -10 ------------- Run | Yrd Mat Sub Turns Passed 1872 | 142 712 1018 Spaces Moved 1015 | 45 410 560 Core . | . . . Treads 306 | . 122 184 Legs 51 | 45 6 . Wheels 658 | . 282 376 Hover . | . . . Flight . | . . . Fastest Speed 80 | 120 80 110 Average Speed 150 | 120 147 155 Slowest Speed 360 | 120 240 360 Overloaded Moves . | . . . Propulsion Burnouts . | . . . Robots Hopped . | . . . Cave-ins Triggered . | . . . Exploration Rate (%) 28 | 3 60 21 Regions Visited 2 Branch Regions 1 Pre-discovered Areas 1 | . . 1 Known Exits Taken . | . . . Unknown Exits Taken 2 | 1 1 . Scrap Searched 3 | . . 3 Spaces Dug . | . . . Terrain Destroyed . | . . . Melee . | . . . Projectile . | . . . AOE . | . . . Terrain Rammed . | . . . Walls Destroyed . | . . . Machines Disabled . | . . . Actions | -11 -10 -10 --------- Run | Yrd Mat Sub Total 1208 | 102 463 643 Wait 36 | 34 2 . Move 1013 | 44 409 560 Hop . | . . . Pick Up 23 | 3 3 17 Fast Attach 3 | . 1 2 Attach 6 | 1 4 1 Detach 2 | . 2 . Swap 25 | 1 5 19 Drop 9 | . 2 7 Fire 89 | 19 34 36 Melee 1 | . . 1 Ram 1 | . 1 . Kick . | . . . Crush . | . . . Escape Stasis . | . . . Rewire . | . . . Trap . | . . . Miscellaneous . | . . . Route ------- -11/Scrapyard -10/Materials (discovered 3 exits: [*Mat] / [*Min] / [*Sub]) -10/Subcaves (discovered 1 exit: Rec) History --------- Turn | Location | Event 16 | -11/Scrapyard | Discovered new exit (range 3) 143 | -11/Scrapyard | Entered Materials 304 | -10/Materials | Build established: Mutant 354 | -10/Materials | Discovered new exit (range 3) 448 | -10/Materials | Discovered new exit (range 12) 843 | -10/Materials | Discovered new exit (range 5) 855 | -10/Materials | Entered Subcaves 858 | -10/Subcaves | Learned location of Recycling (-7) 874 | -10/Subcaves | Learned 4 Materials zone layouts 905 | -10/Subcaves | Shifting Twisted Machinery released Sub. Machine Gun 961 | -10/Subcaves | Shifting Twisted Machinery released Mak. System Restoration Module 1437 | -10/Subcaves | Identified exit to Recycling 1676 | -10/Subcaves | Disturbed a concealed Subdweller 1696 | -10/Subcaves | Core integrity fell below 50% 1821 | -10/Subcaves | Core integrity fell below 20% 1873 | -10/Subcaves | Destroyed by VF-KVR(R) with Subdweller Beam Cannon Last Messages --------------- 01678_ Subatomizers dissect the Lgt. Assault Rifle, destroying it. 01690_ Subatomizers dissect the Lgt. Treads. 01695_ RZ-T85(R) destroyed. 01701_ Acquired 26 matter. 01702_ Subatomizers dissect the Lgt. Treads. 01760_ Subatomizers dissect the Sub. Laser. 01802_ Sub. Machine Gun destroyed. 01818_ OI-O7D(R) destroyed. 01824_ Sub. Power Source melted. 01824_ 9A-95I(R) destroyed. 01830_ Acquired Sub. Machine Gun. 01831_ Acquired 30 matter. 01834_ Dropped Barrage Gun. 01835_ Acquired Sub. Laser. 01837_ Acquired 17 matter. 01839_ Dropped Heat Sink. 01844_ Acquired Sub. Monowheel. 01869_ Sub. Machine Gun destroyed. 01871_ VF-KVR(R) knocked back. Map ----- +----------------------------------------------------+ | ?????????????????????????????????????????????????? | | ?????????????????????????????????????????????????? | | ?????????????????????????????????????????????????? | | ?????????????????????????????????????????????????? | | ?????????????????????????????????????????????????? | | ?????????????????????????????????????????????????? | | ?????????????????????????????????????????????????? | | ?????????????????????????????????????????????????? | | ?????????????????????????????????????????????????? | | ?????????????????????????????????????????????????? | | ?????????????????????????????????????????????????? | | ?????????????????????????????????????????????????? | | ????????????????##???????????????????????????????? | | ????????????????" ####????????????#??????????????? | | ??????????????? " """##?##??????? #??????????????? | | ???????????????"""""""## ##???## ??????????????? | | ???????????????#"" "" #### ??????????????? | | ????????????????# "" # ?????????????? | | ?????????????????#"" ?????????????? | | ?????????????????#" ???????????????? | | ????????????????## #????????????????????? | | ??????????????### #?????????????????????? | | ??????????????# ##?????????????????????? | | ??????????????# R #####???????????????????? | | ???????????#### R ## ##??????????????????? | | ??????????##" ### &! @ ####???????????????? | | ??????????# ###& #???????????????? | | ??????????# #### # ##???????????????? | | ??????????#### ###[ ###### ##????????????????? | | ?????????????## # #?????###?????????????????? | | ?????????????## #?????????????????????????? | | ????????????## ## ##????????????????????????? | | ?????????#### #### #????????????????????????? | | ????????## # ### #????????????????????????? | | ????????# #### #????????????????????????? | | ????????# ##""## ##????????????????????????? | | ????????# #"[%"# #?????????????????????????? | | ????????#=#"|%"# #?????????????????????????? | | ????????# ""## #######?????????????????????????? | | ????????#[[#### #???????????????????????????????? | | ????????# = #???????????????????????????????? | | ????????###### #???????????????????????????????? | | ?????????????## #???????????????????????????????? | | ??????????????# #???????????????????????????????? | | ??????????????# #???????????????????????????????? | | ??????????????# #???????????????????????????????? | | ??????????????# #???????????????????????????????? | | ??????????????# #???????????????????????????????? | | ?????????????## ##???????????????????????????????? | | ?????????????# #????????????????????????????????? | +----------------------------------------------------+ Best States ------------- Heat Dissipation 35 Energy Generation 10 Energy Capacity 250 Matter Stores 300 Matter Capacity 300 Sight Range 16 Terrain Scan Range 16 Terrain Scan Density 10 Armor Coverage 100 Propulsion Shielding 33 Evasion (%) 55 Recoil Reduction 2 Item Schematics ----------------- None Robot Schematics ------------------ None Fabricated ------------ Nothing Alien Tech Used ----------------- None Achievements -------------- None Challenges ------------ None Game ------ Seed MasterBiometalOptics Manual? 0 Play Time 00:16:55 Cumulative 73.8 hours Start 2024.11.29 @ 21:31:12 End 2024.11.29 @ 21:47:14 Sessions 1 Manual Loads 0 Difficulty Rogue Special Mode None Game No. 116 Rogue 116 Adventurer 0 Explorer 0 Win Type - Total 0 Types 0/0/0/0/0/0/0/0/0 Lore% 50 Gallery% 40 Achievement% 30 Wizard Run 0 Options --------- Layout 1 ASCII 0 Keyboard 0 Movement Mouse Keybinds 0 Fullscreen 1 Font 24/Smallcaps Map View 50x40 Zoom Use 0% Tactical HUD 1 Map Filters NONE Filters NONE Steam 1 RUN: beda0b6b-60fc-4129-8097-825094b0ec1c